[Event "Titled Tuesday Blitz November 29 Late 2022"]
[White "Steinberg, Nitzan"]
[Black "Mickiewicz, Piotr"]
[WhiteFideId "2801795"]
[BlackFideId "1114891"]
[WhiteElo "2491"]
[BlackElo "2246"]
[Result "1-0"]
[Round "02"]
[TimeControl "180+1"]
[Date "2022.11.30"]
[WhiteClock "0:01:49"]
[BlackClock "0:00:03"]

1. Nf3 {[%clk 0:03:00]}  Nf6 {[%clk 0:02:58]} 2. g3 {[%clk 0:03:01]}  g6 {[%clk 0:02:58]} 3. Bg2 {[%clk 0:03:01]}  Bg7 {[%clk 0:02:58]} 4. O-O {[%clk 0:03:02]}  O-O {[%clk 0:02:59]} 5. d4 {[%clk 0:03:01]}  d6 {[%clk 0:02:59]} 6. c4 {[%clk 0:03:01]}  Nc6 {[%clk 0:02:58]} 7. Nc3 {[%clk 0:03:02]}  Bf5 {[%clk 0:02:56]} 8. b3 {[%clk 0:03:02]}  Ne4 {[%clk 0:02:55]} 9. Bb2 {[%clk 0:03:02]}  Nxc3 {[%clk 0:02:53]} 10. Bxc3 {[%clk 0:03:03]}  Be4 {[%clk 0:02:53]} 11. e3 {[%clk 0:03:02]}  e6 {[%clk 0:02:50]} 12. Rc1 {[%clk 0:03:01]}  d5 {[%clk 0:02:50]} 13. Nd2 {[%clk 0:02:57]}  Bxg2 {[%clk 0:02:48]} 14. Kxg2 {[%clk 0:02:58]}  a5 {[%clk 0:02:47]} 15. h4 {[%clk 0:02:52]}  Qd7 {[%clk 0:02:44]} 16. h5 {[%clk 0:02:51]}  Rfd8 {[%clk 0:02:29]} 17. Rh1 {[%clk 0:02:51]}  e5 {[%clk 0:02:21]} 18. dxe5 {[%clk 0:02:51]}  Nxe5 {[%clk 0:02:08]} 19. h6 {[%clk 0:02:46]}  Bf6 {[%clk 0:01:36]} 20. Bxe5 {[%clk 0:02:46]}  Bxe5 {[%clk 0:01:35]} 21. Nf3 {[%clk 0:02:47]}  Qe6 {[%clk 0:01:25]} 22. cxd5 {[%clk 0:02:43]}  Rxd5 {[%clk 0:01:24]} 23. Qc2 {[%clk 0:02:42]}  c6 {[%clk 0:01:18]} 24. Rhd1 {[%clk 0:02:41]}  Rad8 {[%clk 0:01:16]} 25. Rxd5 {[%clk 0:02:36]}  Qxd5 {[%clk 0:01:15]} 26. e4 {[%clk 0:02:36]}  Qd6 {[%clk 0:01:00]} 27. Qc4 {[%clk 0:02:29]}  Bf6 {[%clk 0:00:43]} 28. Rc2 {[%clk 0:02:29]}  Qf8 {[%clk 0:00:40]} 29. e5 {[%clk 0:02:29]}  Be7 {[%clk 0:00:38]} 30. Qf4 {[%clk 0:02:28]}  Rd5 {[%clk 0:00:34]} 31. Rd2 {[%clk 0:02:24]}  Qd8 {[%clk 0:00:27]} 32. Rxd5 {[%clk 0:02:20]}  Qxd5 {[%clk 0:00:28]} 33. Qg4 {[%clk 0:02:20]}  Qe6 {[%clk 0:00:23]} 34. Qxe6 {[%clk 0:02:18]}  fxe6 {[%clk 0:00:23]} 35. Nd4 {[%clk 0:02:19]}  Kf7 {[%clk 0:00:23]} 36. Nf3 {[%clk 0:02:10]}  Bf8 {[%clk 0:00:20]} 37. Ng5+ {[%clk 0:02:10]}  Ke7 {[%clk 0:00:20]} 38. Nxh7 {[%clk 0:02:11]}  Bxh6 {[%clk 0:00:20]} 39. f4 {[%clk 0:02:09]}  b5 {[%clk 0:00:19]} 40. Kf3 {[%clk 0:02:09]}  c5 {[%clk 0:00:15]} 41. Ke4 {[%clk 0:02:08]}  g5 {[%clk 0:00:14]} 42. fxg5 {[%clk 0:02:07]}  Bg7 {[%clk 0:00:13]} 43. Nf6 {[%clk 0:02:08]}  Kf7 {[%clk 0:00:13]} 44. Nh5 {[%clk 0:02:02]}  Bf8 {[%clk 0:00:11]} 45. Nf4 {[%clk 0:02:02]}  Bg7 {[%clk 0:00:07]} 46. g6+ {[%clk 0:02:00]}  Ke7 {[%clk 0:00:08]} 47. Nh5 {[%clk 0:01:54]}  Bh6 {[%clk 0:00:08]} 48. g4 {[%clk 0:01:53]}  c4 {[%clk 0:00:08]} 49. bxc4 {[%clk 0:01:53]}  b4 {[%clk 0:00:09]} 50. Kd3 {[%clk 0:01:52]}  a4 {[%clk 0:00:09]} 51. Kc2 {[%clk 0:01:53]}  Be3 {[%clk 0:00:07]} 52. Nf6 {[%clk 0:01:50]}  Kf8 {[%clk 0:00:05]} 53. c5 {[%clk 0:01:49]}  Bd4 {[%clk 0:00:03]} 54. c6 {[%clk 0:01:49]} 1-0


[Site "https://www.chess.com"]

[Event "Titled Tuesday Blitz November 29 Late 2022"]
[White "Svane, Frederik"]
[Black "Tworuszka, Michal"]
[WhiteFideId "12923044"]
[BlackFideId "1117858"]
[WhiteElo "2466"]
[BlackElo "2421"]
[Result "1-0"]
[Round "02"]
[TimeControl "180+1"]
[Date "2022.11.30"]
[WhiteClock "0:01:09"]
[BlackClock "0:00:05"]

1. e4 {[%clk 0:03:00]}  e5 {[%clk 0:02:58]} 2. Nf3 {[%clk 0:03:01]}  Nc6 {[%clk 0:02:58]} 3. Bb5 {[%clk 0:03:02]}  a6 {[%clk 0:02:58]} 4. Ba4 {[%clk 0:03:02]}  Nf6 {[%clk 0:02:58]} 5. O-O {[%clk 0:03:03]}  Be7 {[%clk 0:02:58]} 6. d3 {[%clk 0:03:03]}  d6 {[%clk 0:02:57]} 7. c3 {[%clk 0:03:03]}  O-O {[%clk 0:02:57]} 8. Re1 {[%clk 0:03:04]}  b5 {[%clk 0:02:51]} 9. Bc2 {[%clk 0:03:04]}  Re8 {[%clk 0:02:52]} 10. Nbd2 {[%clk 0:03:04]}  Bf8 {[%clk 0:02:52]} 11. d4 {[%clk 0:02:56]}  g6 {[%clk 0:02:38]} 12. Nf1 {[%clk 0:02:56]}  exd4 {[%clk 0:02:33]} 13. cxd4 {[%clk 0:02:56]}  Bg4 {[%clk 0:02:33]} 14. Ng3 {[%clk 0:02:31]}  Bxf3 {[%clk 0:02:32]} 15. gxf3 {[%clk 0:02:32]}  Bg7 {[%clk 0:02:29]} 16. Be3 {[%clk 0:02:30]}  Nd7 {[%clk 0:02:08]} 17. f4 {[%clk 0:02:25]}  Nb4 {[%clk 0:02:01]} 18. Bb3 {[%clk 0:02:22]}  c5 {[%clk 0:02:00]} 19. dxc5 {[%clk 0:02:23]}  Nxc5 {[%clk 0:01:55]} 20. a3 {[%clk 0:02:20]}  Nbd3 {[%clk 0:01:53]} 21. Re2 {[%clk 0:02:18]}  Nxb2 {[%clk 0:01:53]} 22. Qd5 {[%clk 0:02:16]}  Nc4 {[%clk 0:01:50]} 23. Bxc4 {[%clk 0:02:05]}  bxc4 {[%clk 0:01:48]} 24. Rc1 {[%clk 0:02:04]}  c3 {[%clk 0:01:31]} 25. e5 {[%clk 0:02:04]}  Ne6 {[%clk 0:00:25]} 26. exd6 {[%clk 0:01:59]}  Qd7 {[%clk 0:00:16]} 27. f5 {[%clk 0:01:54]}  gxf5 {[%clk 0:00:15]} 28. Nxf5 {[%clk 0:01:55]}  Nf4 {[%clk 0:00:13]} 29. Bxf4 {[%clk 0:01:55]}  Rxe2 {[%clk 0:00:13]} 30. Qxa8+ {[%clk 0:01:56]}  Bf8 {[%clk 0:00:12]} 31. Qg2+ {[%clk 0:01:49]}  Kh8 {[%clk 0:00:11]} 32. Qd5 {[%clk 0:01:13]}  Qe6 {[%clk 0:00:05]} 33. Qxe6 {[%clk 0:01:12]}  fxe6 {[%clk 0:00:05]} 34. Ne3 {[%clk 0:01:09]} 1-0


[Site "https://www.chess.com"]

[Event "Titled Tuesday Blitz November 29 Late 2022"]
[White "Tanenbaum, Zachary"]
[Black "Gatterer, Florian"]
[WhiteFideId "2060850"]
[BlackFideId "811688"]
[WhiteElo "2175"]
[BlackElo "2218"]
[Result "1/2-1/2"]
[Round "02"]
[TimeControl "180+1"]
[Date "2022.11.30"]
[WhiteClock "0:00:07"]
[BlackClock "0:00:11"]

1. e4 {[%clk 0:03:00]}  c6 {[%clk 0:02:59]} 2. d4 {[%clk 0:03:00]}  d5 {[%clk 0:02:59]} 3. exd5 {[%clk 0:03:01]}  cxd5 {[%clk 0:02:59]} 4. Bd3 {[%clk 0:03:01]}  Nf6 {[%clk 0:02:57]} 5. c3 {[%clk 0:03:02]}  Bg4 {[%clk 0:02:55]} 6. Qb3 {[%clk 0:02:58]}  Qc7 {[%clk 0:02:55]} 7. h3 {[%clk 0:02:55]}  Bd7 {[%clk 0:02:48]} 8. Ne2 {[%clk 0:02:52]}  e6 {[%clk 0:02:48]} 9. Bf4 {[%clk 0:02:51]}  Qc8 {[%clk 0:02:44]} 10. Nd2 {[%clk 0:02:48]}  Nc6 {[%clk 0:02:44]} 11. O-O {[%clk 0:02:46]}  Be7 {[%clk 0:02:44]} 12. Nf3 {[%clk 0:02:42]}  O-O {[%clk 0:02:42]} 13. Qc2 {[%clk 0:02:39]}  g6 {[%clk 0:02:41]} 14. Ne5 {[%clk 0:02:36]}  Nxe5 {[%clk 0:02:38]} 15. dxe5 {[%clk 0:02:36]}  Nh5 {[%clk 0:02:30]} 16. Bh6 {[%clk 0:02:35]}  Re8 {[%clk 0:02:26]} 17. Nd4 {[%clk 0:02:35]}  Bf8 {[%clk 0:02:10]} 18. Qd2 {[%clk 0:02:27]}  Be7 {[%clk 0:02:05]} 19. f4 {[%clk 0:02:07]}  Ng7 {[%clk 0:02:02]} 20. g4 {[%clk 0:01:46]}  f5 {[%clk 0:01:55]} 21. Qg2 {[%clk 0:01:30]}  fxg4 {[%clk 0:01:25]} 22. Qxg4 {[%clk 0:01:19]}  Nf5 {[%clk 0:01:19]} 23. Bxf5 {[%clk 0:01:09]}  exf5 {[%clk 0:01:19]} 24. Qf3 {[%clk 0:01:09]}  Be6 {[%clk 0:01:12]} 25. Rad1 {[%clk 0:01:08]}  Rd8 {[%clk 0:01:13]} 26. Kh2 {[%clk 0:01:06]}  Qd7 {[%clk 0:01:02]} 27. Rg1 {[%clk 0:01:05]}  Kf7 {[%clk 0:00:56]} 28. Bg5 {[%clk 0:01:01]}  Rac8 {[%clk 0:00:50]} 29. Qf2 {[%clk 0:01:00]}  Bxg5 {[%clk 0:00:48]} 30. Rxg5 {[%clk 0:01:01]}  Rg8 {[%clk 0:00:38]} 31. Nxe6 {[%clk 0:00:58]}  Qxe6 {[%clk 0:00:37]} 32. Qxa7 {[%clk 0:00:59]}  Qc6 {[%clk 0:00:30]} 33. Qd4 {[%clk 0:00:55]}  Ra8 {[%clk 0:00:30]} 34. Qxd5+ {[%clk 0:00:54]}  Qxd5 {[%clk 0:00:29]} 35. Rxd5 {[%clk 0:00:55]}  Rgd8 {[%clk 0:00:18]} 36. Rb5 {[%clk 0:00:49]}  Rd7 {[%clk 0:00:17]} 37. a3 {[%clk 0:00:48]}  Ke6 {[%clk 0:00:15]} 38. Rb6+ {[%clk 0:00:46]}  Kd5 {[%clk 0:00:14]} 39. Rg2 {[%clk 0:00:44]}  Ke4 {[%clk 0:00:13]} 40. Rb4+ {[%clk 0:00:42]}  Kf3 {[%clk 0:00:12]} 41. Rg3+ {[%clk 0:00:32]}  Kf2 {[%clk 0:00:12]} 42. e6 {[%clk 0:00:31]}  Re7 {[%clk 0:00:11]} 43. Rb6 {[%clk 0:00:30]}  Ra6 {[%clk 0:00:10]} 44. Rxa6 {[%clk 0:00:26]}  bxa6 {[%clk 0:00:11]} 45. c4 {[%clk 0:00:22]}  Rxe6 {[%clk 0:00:11]} 46. Rc3 {[%clk 0:00:23]}  Re2 {[%clk 0:00:10]} 47. b4 {[%clk 0:00:17]}  h5 {[%clk 0:00:10]} 48. c5 {[%clk 0:00:17]}  h4 {[%clk 0:00:11]} 49. c6 {[%clk 0:00:09]}  Ke1+ {[%clk 0:00:10]} 50. Kg1 {[%clk 0:00:09]}  Kd2 {[%clk 0:00:10]} 51. Rc5 {[%clk 0:00:09]}  Re1+ {[%clk 0:00:10]} 52. Kg2 {[%clk 0:00:06]}  Re2+ {[%clk 0:00:10]} 53. Kf3 {[%clk 0:00:07]}  Re3+ {[%clk 0:00:10]} 54. Kf2 {[%clk 0:00:07]}  Re2+ {[%clk 0:00:11]} 55. Kf1 {[%clk 0:00:08]}  Re1+ {[%clk 0:00:11]} 56. Kg2 {[%clk 0:00:08]}  Re2+ {[%clk 0:00:11]} 57. Kg1 {[%clk 0:00:07]} 1/2-1/2


[Site "https://www.chess.com"]

[Event "Titled Tuesday Blitz November 29 Late 2022"]
[White "Urbina Perez, Juan Antonio"]
[Black "Battlecruiser_Operational"]
[WhiteFideId "2217368"]
[WhiteElo "2197"]
[BlackElo "2139"]
[Result "0-1"]
[Round "02"]
[TimeControl "180+1"]
[Date "2022.11.30"]
[WhiteClock "0:00:13"]
[BlackClock "0:00:09"]

1. e4 {[%clk 0:02:58]}  c6 {[%clk 0:03:00]} 2. Nf3 {[%clk 0:02:58]}  d5 {[%clk 0:03:01]} 3. d3 {[%clk 0:02:58]}  g6 {[%clk 0:03:00]} 4. e5 {[%clk 0:02:58]}  Bg7 {[%clk 0:02:59]} 5. d4 {[%clk 0:02:58]}  c5 {[%clk 0:02:58]} 6. c3 {[%clk 0:02:58]}  Nc6 {[%clk 0:02:58]} 7. h3 {[%clk 0:02:57]}  Nh6 {[%clk 0:02:50]} 8. Be2 {[%clk 0:02:55]}  O-O {[%clk 0:02:49]} 9. O-O {[%clk 0:02:55]}  cxd4 {[%clk 0:02:46]} 10. cxd4 {[%clk 0:02:55]}  f6 {[%clk 0:02:37]} 11. exf6 {[%clk 0:02:41]}  exf6 {[%clk 0:02:38]} 12. Nc3 {[%clk 0:02:40]}  Re8 {[%clk 0:02:34]} 13. Bb5 {[%clk 0:02:38]}  Be6 {[%clk 0:02:29]} 14. Re1 {[%clk 0:02:34]}  Rc8 {[%clk 0:02:29]} 15. Bf4 {[%clk 0:02:31]}  a6 {[%clk 0:02:25]} 16. Bxc6 {[%clk 0:02:24]}  bxc6 {[%clk 0:02:26]} 17. Na4 {[%clk 0:02:21]}  Bf7 {[%clk 0:02:23]} 18. Nc5 {[%clk 0:02:15]}  a5 {[%clk 0:02:17]} 19. Qd2 {[%clk 0:02:14]}  Nf5 {[%clk 0:02:10]} 20. Rxe8+ {[%clk 0:02:10]}  Bxe8 {[%clk 0:01:51]} 21. Re1 {[%clk 0:02:07]}  Bf7 {[%clk 0:01:48]} 22. b3 {[%clk 0:02:02]}  Bf8 {[%clk 0:01:47]} 23. Rc1 {[%clk 0:01:58]}  g5 {[%clk 0:01:41]} 24. Bh2 {[%clk 0:01:53]}  h5 {[%clk 0:01:37]} 25. Nb7 {[%clk 0:01:37]}  Qb6 {[%clk 0:01:31]} 26. Nc5 {[%clk 0:01:32]}  Bh6 {[%clk 0:01:21]} 27. Qd3 {[%clk 0:01:23]}  Bg6 {[%clk 0:01:18]} 28. Qe2 {[%clk 0:01:20]}  Re8 {[%clk 0:01:15]} 29. Qf1 {[%clk 0:01:01]}  g4 {[%clk 0:01:11]} 30. hxg4 {[%clk 0:00:54]}  hxg4 {[%clk 0:01:12]} 31. Re1 {[%clk 0:00:43]}  gxf3 {[%clk 0:01:10]} 32. Rxe8+ {[%clk 0:00:41]}  Bxe8 {[%clk 0:01:11]} 33. gxf3 {[%clk 0:00:41]}  Nxd4 {[%clk 0:01:08]} 34. Qg2+ {[%clk 0:00:37]}  Kh7 {[%clk 0:01:04]} 35. Bd6 {[%clk 0:00:30]}  Nf5 {[%clk 0:00:56]} 36. Qh2 {[%clk 0:00:31]}  Qa7 {[%clk 0:00:32]} 37. Nd3 {[%clk 0:00:24]}  Qg7+ {[%clk 0:00:31]} 38. Kf1 {[%clk 0:00:22]}  Bd7 {[%clk 0:00:30]} 39. Nf4 {[%clk 0:00:20]}  Nd4 {[%clk 0:00:24]} 40. Nh5 {[%clk 0:00:18]}  Qg6 {[%clk 0:00:24]} 41. Qh4 {[%clk 0:00:17]}  Qb1+ {[%clk 0:00:20]} 42. Kg2 {[%clk 0:00:17]}  Qg6+ {[%clk 0:00:18]} 43. Kh1 {[%clk 0:00:16]}  Nxf3 {[%clk 0:00:16]} 44. Nxf6+ {[%clk 0:00:16]}  Kg7 {[%clk 0:00:16]} 45. Nh5+ {[%clk 0:00:15]}  Kf7 {[%clk 0:00:13]} 46. Qe7+ {[%clk 0:00:15]}  Kg8 {[%clk 0:00:13]} 47. Nf6+ {[%clk 0:00:14]}  Kh8 {[%clk 0:00:11]} 48. Qd8+ {[%clk 0:00:14]}  Be8 {[%clk 0:00:11]} 49. Qe7 {[%clk 0:00:13]}  Qg1# {[%clk 0:00:09]} 0-1


[Site "https://www.chess.com"]

[Event "Titled Tuesday Blitz November 29 Late 2022"]
[White "Vargas, Mauricio"]
[Black "Gonzalez, Francisco Silva"]
[WhiteFideId "4404572"]
[BlackFideId "1512285"]
[WhiteElo "2025"]
[BlackElo "2159"]
[Result "0-1"]
[Round "02"]
[TimeControl "180+1"]
[Date "2022.11.30"]
[WhiteClock "0:00:15"]
[BlackClock "0:02:28"]

1. e4 {[%clk 0:01:14]}  e5 {[%clk 0:02:58]} 2. Nf3 {[%clk 0:01:13]}  Nc6 {[%clk 0:02:58]} 3. Bc4 {[%clk 0:01:13]}  Bc5 {[%clk 0:02:57]} 4. d4 {[%clk 0:01:13]}  Bxd4 {[%clk 0:02:57]} 5. Nxd4 {[%clk 0:01:06]}  Nxd4 {[%clk 0:02:57]} 6. O-O {[%clk 0:01:06]}  d6 {[%clk 0:02:57]} 7. f4 {[%clk 0:01:05]}  Nf6 {[%clk 0:02:56]} 8. Nc3 {[%clk 0:00:47]}  c6 {[%clk 0:02:55]} 9. fxe5 {[%clk 0:00:39]}  dxe5 {[%clk 0:02:55]} 10. Bg5 {[%clk 0:00:34]}  Qe7 {[%clk 0:02:55]} 11. Ne2 {[%clk 0:00:22]}  Ne6 {[%clk 0:02:51]} 12. Bxe6 {[%clk 0:00:19]}  Bxe6 {[%clk 0:02:44]} 13. Bxf6 {[%clk 0:00:19]}  gxf6 {[%clk 0:02:44]} 14. Kh1 {[%clk 0:00:18]}  Bg4 {[%clk 0:02:42]} 15. h3 {[%clk 0:00:17]}  Bxe2 {[%clk 0:02:36]} 16. Qxe2 {[%clk 0:00:17]}  O-O-O {[%clk 0:02:37]} 17. Rad1 {[%clk 0:00:17]}  h5 {[%clk 0:02:35]} 18. Qf3 {[%clk 0:00:16]}  Rxd1 {[%clk 0:02:33]} 19. Rxd1 {[%clk 0:00:16]}  Kc7 {[%clk 0:02:31]} 20. Rf1 {[%clk 0:00:15]}  Rh6 {[%clk 0:02:30]} 21. Qe3 {[%clk 0:00:16]}  Rg6 {[%clk 0:02:28]} 22. Qxa7 {[%clk 0:00:15]}  Qb4 {[%clk 0:02:28]} 0-1


[Site "https://www.chess.com"]

[Event "Titled Tuesday Blitz November 29 Late 2022"]
[White "Vargas Pereda, Jesus Manue"]
[Black "Poliakova, Varvara"]
[WhiteFideId "5115710"]
[BlackFideId "13518313"]
[WhiteElo "1950"]
[BlackElo "2099"]
[Result "0-1"]
[Round "02"]
[TimeControl "180+1"]
[Date "2022.11.30"]
[WhiteClock "0:00:11"]
[BlackClock "0:01:46"]

1. Nf3 {[%clk 0:02:49]}  f5 {[%clk 0:02:59]} 2. g3 {[%clk 0:02:46]}  d6 {[%clk 0:03:00]} 3. Bg2 {[%clk 0:02:46]}  Nf6 {[%clk 0:03:01]} 4. d3 {[%clk 0:02:45]}  g6 {[%clk 0:03:02]} 5. O-O {[%clk 0:02:45]}  Bg7 {[%clk 0:03:02]} 6. c4 {[%clk 0:02:44]}  O-O {[%clk 0:03:03]} 7. Nc3 {[%clk 0:02:42]}  e5 {[%clk 0:03:04]} 8. e4 {[%clk 0:02:37]}  Nc6 {[%clk 0:03:03]} 9. Rb1 {[%clk 0:02:30]}  a5 {[%clk 0:03:01]} 10. b3 {[%clk 0:02:28]}  Nh5 {[%clk 0:02:36]} 11. Ne1 {[%clk 0:02:16]}  f4 {[%clk 0:02:36]} 12. Nd5 {[%clk 0:02:03]}  Nd4 {[%clk 0:02:32]} 13. Bb2 {[%clk 0:01:54]}  fxg3 {[%clk 0:02:30]} 14. hxg3 {[%clk 0:01:53]}  c6 {[%clk 0:02:27]} 15. Ne3 {[%clk 0:01:47]}  Qg5 {[%clk 0:02:23]} 16. N1c2 {[%clk 0:01:18]}  Nf4 {[%clk 0:02:10]} 17. Bxd4 {[%clk 0:00:45]}  exd4 {[%clk 0:02:03]} 18. gxf4 {[%clk 0:00:45]}  Rxf4 {[%clk 0:02:01]} 19. f3 {[%clk 0:00:30]}  dxe3 {[%clk 0:01:58]} 20. Nxe3 {[%clk 0:00:29]}  Bd4 {[%clk 0:01:58]} 21. Qe2 {[%clk 0:00:28]}  Rh4 {[%clk 0:01:55]} 22. Rf2 {[%clk 0:00:28]}  Bxe3 {[%clk 0:01:54]} 23. f4 {[%clk 0:00:24]}  Qg3 {[%clk 0:01:48]} 24. Rf1 {[%clk 0:00:22]}  Bg4 {[%clk 0:01:46]} 25. Qe1 {[%clk 0:00:11]}  Qh2# {[%clk 0:01:46]} 0-1


[Site "https://www.chess.com"]

[Event "Titled Tuesday Blitz November 29 Late 2022"]
[White "Weisz, Bryan"]
[Black "Karas, Marek"]
[WhiteFideId "30934133"]
[BlackFideId "14928558"]
[WhiteElo "2274"]
[BlackElo "2220"]
[Result "1-0"]
[Round "02"]
[TimeControl "180+1"]
[Date "2022.11.30"]
[WhiteClock "0:00:05"]
[BlackClock "0:00:01"]

1. e4 {[%clk 0:02:59]}  e6 {[%clk 0:02:54]} 2. d4 {[%clk 0:03:00]}  d5 {[%clk 0:02:48]} 3. Nd2 {[%clk 0:02:58]}  Nc6 {[%clk 0:02:46]} 4. Ngf3 {[%clk 0:02:56]}  Nf6 {[%clk 0:02:39]} 5. e5 {[%clk 0:02:56]}  Nd7 {[%clk 0:02:37]} 6. Be2 {[%clk 0:02:56]}  f6 {[%clk 0:02:37]} 7. exf6 {[%clk 0:02:54]}  Qxf6 {[%clk 0:02:38]} 8. Nf1 {[%clk 0:02:53]}  Bd6 {[%clk 0:02:35]} 9. Ne3 {[%clk 0:02:51]}  O-O {[%clk 0:02:31]} 10. O-O {[%clk 0:02:38]}  Qg6 {[%clk 0:02:17]} 11. c4 {[%clk 0:02:32]}  Nf6 {[%clk 0:02:15]} 12. c5 {[%clk 0:01:47]}  Be7 {[%clk 0:02:14]} 13. b4 {[%clk 0:01:34]}  a6 {[%clk 0:02:00]} 14. Bb2 {[%clk 0:01:17]}  Ne4 {[%clk 0:01:55]} 15. a4 {[%clk 0:01:07]}  Nxb4 {[%clk 0:01:44]} 16. Ne5 {[%clk 0:01:06]}  Qe8 {[%clk 0:01:44]} 17. Qb3 {[%clk 0:00:49]}  Nc6 {[%clk 0:01:40]} 18. Nxc6 {[%clk 0:00:44]}  bxc6 {[%clk 0:01:38]} 19. Bd3 {[%clk 0:00:38]}  Nf6 {[%clk 0:01:13]} 20. Qc2 {[%clk 0:00:35]}  Qh5 {[%clk 0:01:10]} 21. Rfe1 {[%clk 0:00:30]}  Bd7 {[%clk 0:01:00]} 22. Nf1 {[%clk 0:00:29]}  Ng4 {[%clk 0:00:55]} 23. f3 {[%clk 0:00:25]}  Nf6 {[%clk 0:00:51]} 24. Ng3 {[%clk 0:00:24]}  Qh4 {[%clk 0:00:48]} 25. Nf5 {[%clk 0:00:21]}  exf5 {[%clk 0:00:42]} 26. Rxe7 {[%clk 0:00:21]}  Rf7 {[%clk 0:00:41]} 27. Rae1 {[%clk 0:00:19]}  Re8 {[%clk 0:00:33]} 28. Rxe8+ {[%clk 0:00:12]}  Nxe8 {[%clk 0:00:30]} 29. Qe2 {[%clk 0:00:12]}  Kf8 {[%clk 0:00:24]} 30. g3 {[%clk 0:00:12]}  Qf6 {[%clk 0:00:20]} 31. Bxa6 {[%clk 0:00:10]}  f4 {[%clk 0:00:17]} 32. g4 {[%clk 0:00:06]}  h5 {[%clk 0:00:17]} 33. h3 {[%clk 0:00:06]}  Qh4 {[%clk 0:00:13]} 34. Qf2 {[%clk 0:00:05]}  Qxh3 {[%clk 0:00:11]} 35. Bf1 {[%clk 0:00:05]}  Qg3+ {[%clk 0:00:07]} 36. Qxg3 {[%clk 0:00:06]}  fxg3 {[%clk 0:00:08]} 37. Be2 {[%clk 0:00:03]}  hxg4 {[%clk 0:00:06]} 38. fxg4 {[%clk 0:00:04]}  Nf6 {[%clk 0:00:04]} 39. a5 {[%clk 0:00:04]}  Bc8 {[%clk 0:00:03]} 40. a6 {[%clk 0:00:04]}  Bxa6 {[%clk 0:00:03]} 41. Bxa6 {[%clk 0:00:05]}  Nxg4 {[%clk 0:00:04]} 42. Rf1 {[%clk 0:00:05]}  Nf2 {[%clk 0:00:04]} 43. Bc3 {[%clk 0:00:04]}  Rf6 {[%clk 0:00:03]} 44. Kg2 {[%clk 0:00:05]}  Ng4 {[%clk 0:00:02]} 45. Rxf6+ {[%clk 0:00:05]}  Nxf6 {[%clk 0:00:02]} 46. Be1 {[%clk 0:00:05]}  Nh5 {[%clk 0:00:01]} 47. Bxg3 {[%clk 0:00:05]} 1-0


[Site "https://www.chess.com"]

[Event "Titled Tuesday Blitz November 29 Late 2022"]
[White "Wirig, Anthony"]
[Black "Melikyan, Gnel"]
[WhiteFideId "615013"]
[BlackFideId "54109990"]
[WhiteElo "2487"]
[BlackElo "2138"]
[Result "1-0"]
[Round "02"]
[TimeControl "180+1"]
[Date "2022.11.30"]
[WhiteClock "0:00:09"]
[BlackClock "0:00:04"]

1. d4 {[%clk 0:03:00]}  Nf6 {[%clk 0:02:59]} 2. Bg5 {[%clk 0:03:00]}  g6 {[%clk 0:02:51]} 3. Bxf6 {[%clk 0:03:00]}  exf6 {[%clk 0:02:51]} 4. e3 {[%clk 0:03:01]}  Bg7 {[%clk 0:02:51]} 5. h4 {[%clk 0:03:01]}  h5 {[%clk 0:02:49]} 6. c4 {[%clk 0:02:58]}  d6 {[%clk 0:02:49]} 7. Nc3 {[%clk 0:02:58]}  O-O {[%clk 0:02:47]} 8. g3 {[%clk 0:02:58]}  c6 {[%clk 0:02:46]} 9. Bg2 {[%clk 0:02:58]}  Qb6 {[%clk 0:02:43]} 10. Qd2 {[%clk 0:02:53]}  Be6 {[%clk 0:02:39]} 11. b3 {[%clk 0:02:49]}  Nd7 {[%clk 0:02:37]} 12. Nge2 {[%clk 0:02:48]}  Rfe8 {[%clk 0:02:35]} 13. O-O {[%clk 0:02:33]}  Nf8 {[%clk 0:02:21]} 14. d5 {[%clk 0:02:27]}  Bd7 {[%clk 0:02:13]} 15. dxc6 {[%clk 0:02:24]}  Bxc6 {[%clk 0:02:13]} 16. Qxd6 {[%clk 0:02:20]}  Rad8 {[%clk 0:02:10]} 17. Qa3 {[%clk 0:02:10]}  Bxg2 {[%clk 0:02:03]} 18. Kxg2 {[%clk 0:02:11]}  f5 {[%clk 0:02:00]} 19. Rad1 {[%clk 0:02:02]}  a6 {[%clk 0:01:40]} 20. Rxd8 {[%clk 0:01:54]}  Rxd8 {[%clk 0:01:39]} 21. Nd5 {[%clk 0:01:53]}  Qe6 {[%clk 0:01:33]} 22. Qe7 {[%clk 0:01:43]}  Rd7 {[%clk 0:01:30]} 23. Qc5 {[%clk 0:01:02]}  Qe4+ {[%clk 0:01:08]} 24. Kg1 {[%clk 0:00:48]}  Qc2 {[%clk 0:00:57]} 25. Nef4 {[%clk 0:00:39]}  Qxa2 {[%clk 0:00:56]} 26. b4 {[%clk 0:00:30]}  Kh7 {[%clk 0:00:36]} 27. Nh3 {[%clk 0:00:27]}  Ne6 {[%clk 0:00:30]} 28. Qc8 {[%clk 0:00:24]}  Rxd5 {[%clk 0:00:25]} 29. cxd5 {[%clk 0:00:22]}  Qxd5 {[%clk 0:00:26]} 30. Qe8 {[%clk 0:00:15]}  Qe5 {[%clk 0:00:04]} 31. Qxf7 {[%clk 0:00:09]}  Qf6 {[%clk 0:00:04]} 32. Qxe6 {[%clk 0:00:09]} 1-0


[Site "https://www.chess.com"]